bitfinex/quotes_BTCUSD_20250428
["timestamp","ask_amount","ask_price","bid_price","bid_amount"]
[1745837655827,0.47093522,95151.0,95150.0,0.55384384]
[1745837655974,0.4688337,95151.0,95150.0,0.55384384]
[1745837656177,0.68373011,95151.0,95150.0,0.55384384]
[1745837656576,0.47353789,95151.0,95150.0,0.55384384]
[1745837657654,0.49319532,95151.0,95150.0,0.55384384]
[1745837658008,0.50302352,95151.0,95150.0,0.55384384]
[1745837658965,0.71321574,95151.0,95150.0,0.55384384]
[1745837660236,0.50302352,95151.0,95150.0,0.55384384]
[1745837660990,0.48848267,95151.0,95150.0,0.55384384]
[1745837664608,0.48848267,95151.0,95150.0,0.55384384]
[1745837665197,0.48848267,95151.0,95150.0,0.55374384]
[1745837669931,0.69867489,95151.0,95150.0,0.55374384]
[1745837670253,0.48848267,95151.0,95150.0,0.55374384]
[1745837670652,0.69867489,95151.0,95150.0,0.55374384]
[1745837671255,0.48848267,95151.0,95150.0,0.55374384]
[1745837672380,0.46882524,95151.0,95150.0,0.55374384]
[1745837673156,0.57901746,95151.0,95150.0,0.55374384]
[1745837674182,0.59868099,95151.0,95150.0,0.55374384]
[1745837674372,0.61322184,95151.0,95150.0,0.45804384]
[1745837677070,0.06302962,95151.0,95150.0,0.45804384]
[1745837677275,0.61322184,95151.0,95150.0,0.45804384]
[1745837677556,0.66032184,95151.0,95150.0,0.45804384]
[1745837677750,0.22575737,95140.0,95139.0,0.0008488]
[1745837677991,1.08733845,95140.0,95139.0,0.0008488]
[1745837678196,1.38240657,95140.0,95139.0,0.0008488]
[1745837678769,1.39223477,95140.0,95139.0,0.0008488]
[1745837679167,1.39723477,95140.0,95139.0,0.0018488]
[1745837679372,1.40323477,95140.0,95139.0,0.0018488]
[1745837680050,0.56577505,95132.0,95131.0,1e-08]
[1745837680185,1.22858572,95132.0,95131.0,1e-08]
[1745837680395,1.24824925,95132.0,95131.0,1e-08]
[1745837681138,1.24824925,95132.0,95129.0,0.000849]
[1745837681139,0.56577947,95130.0,95129.0,0.000849]
[1745837681396,0.56581483,95114.0,95086.0,0.0468]
[1745837681595,0.67270497,95114.0,95086.0,0.0468]
[1745837682151,0.69975391,95114.0,95086.0,0.0468]
[1745837682354,0.80695391,95114.0,95106.0,0.0465]
[1745837682535,0.81678211,95114.0,95106.0,0.0465]
[1745837682742,0.81682755,95114.0,95106.0,0.0465]
[1745837682956,0.81982755,95114.0,95113.0,0.0018492]
[1745837683181,0.81982755,95114.0,95113.0,0.00166345]
[1745837683358,0.84925008,95114.0,95113.0,0.00166345]
[1745837683877,0.84925008,95114.0,95113.0,0.01166345]
[1745837684766,0.84825008,95114.0,95113.0,0.01066345]
[1745837684947,0.84725008,95114.0,95113.0,0.01066345]
[1745837685249,0.85025008,95114.0,95113.0,0.01066345]
[1745837685602,0.83058655,95114.0,95113.0,0.01066345]
[1745837685817,1.24118655,95114.0,95113.0,0.01066345]
[1745837689516,1.26075951,95114.0,95113.0,0.01066345]
[1745837690608,1.24118655,95114.0,95113.0,0.01066345]
[1745837692262,1.23132621,95114.0,95113.0,0.01066345]
[1745837693570,1.21176402,95114.0,95113.0,0.01066345]
[1745837694715,1.24110633,95114.0,95113.0,0.01066345]
[1745837696466,1.26066892,95114.0,95113.0,0.01066345]
[1745837697478,1.26066892,95114.0,95113.0,0.01076345]
[1745837698098,1.26070892,95114.0,95113.0,0.01076345]
[1745837701628,1.26070892,95114.0,95113.0,0.00090053]
[1745837702431,1.24114633,95114.0,95113.0,0.00090053]
[1745837704728,1.22560548,95114.0,95113.0,0.00090053]
[1745837704938,1.24014633,95114.0,95113.0,0.00090053]
[1745837707128,1.24014633,95114.0,95105.0,0.0974]
[1745837707129,0.56481925,95112.0,95111.0,0.99966734]
[1745837707368,0.7010517,95112.0,95111.0,0.99966734]
[1745837707917,0.71826531,95112.0,95111.0,0.98191444]
[1745837708133,0.71826531,95112.0,95111.0,0.97451731]
[1745837708437,0.72026531,95112.0,95111.0,0.97451731]
[1745837708832,0.72026531,95112.0,95111.0,0.97442441]
[1745837708996,0.72126531,95112.0,95111.0,0.97642441]
[1745837710003,0.71143711,95112.0,95111.0,0.97642441]
[1745837710634,0.81967711,95112.0,95111.0,0.97642441]
[1745837710977,0.81967711,95112.0,95111.0,0.97633154]
[1745837712208,0.71143711,95112.0,95111.0,0.97633154]
[1745837712414,0.81943711,95112.0,95111.0,0.97633154]
[1745837714532,0.83914535,95112.0,95111.0,0.96646926]
[1745837715493,0.74514535,95112.0,95111.0,0.96646926]
[1745837717784,0.7180517,95112.0,95111.0,0.96646926]
[1745837717914,0.74514582,95112.0,95111.0,0.96646926]
[1745837719198,0.74514582,95112.0,95111.0,0.97646926]
[1745837720627,0.75499776,95112.0,95111.0,0.97646926]
[1745837721411,0.64699776,95112.0,95111.0,0.97646926]
[1745837721612,0.42217851,95112.0,95111.0,1.02636926]
[1745837721790,0.41232657,95112.0,95111.0,1.02636926]
[1745837721976,0.62260497,95112.0,95111.0,1.02636926]
[1745837724726,0.6324519,95112.0,95111.0,1.02636926]
[1745837725140,0.4221735,95112.0,95111.0,1.02636926]
[1745837726415,0.4221735,95112.0,95111.0,1.07246926]
[1745837731659,0.4221735,95112.0,95111.0,1.08150853]
[1745837735985,0.39283119,95112.0,95111.0,0.84912655]
[1745837738497,0.37312637,95112.0,95111.0,0.84912655]
[1745837740667,0.38384081,95112.0,95111.0,0.84912655]
[1745837741750,0.40352184,95112.0,95111.0,0.84912655]
[1745837744956,0.38384081,95112.0,95111.0,0.84912655]
[1745837746011,0.41336062,95112.0,95111.0,0.84912655]
[1745837748691,0.43305089,95112.0,95111.0,0.84912655]
[1745837753935,0.42320396,95112.0,95111.0,0.84912655]
[1745837755432,0.04079401,95112.0,95111.0,0.84912655]
[1745837756526,0.04964747,95112.0,95111.0,0.84712655]
[1745837756741,0.05064747,95112.0,95111.0,0.85012655]
[1745837757639,0.04864747,95112.0,95111.0,0.85012655]
[1745837757852,0.04964747,95112.0,95111.0,0.85112655]
[1745837758283,0.04964747,95112.0,95111.0,0.93623921]
[1745837761444,0.04964747,95112.0,95111.0,0.85112655]
[1745837765414,0.03979401,95112.0,95111.0,0.85112655]
[1745837772416,0.04963407,95112.0,95111.0,0.85112655]
[1745837776734,0.03979401,95112.0,95111.0,0.85112655]
[1745837787119,0.02010374,95112.0,95111.0,0.85112655]
[1745837787477,0.02010374,95112.0,95111.0,0.93623921]
[1745837788074,0.01241274,95112.0,95111.0,0.69973898]
[1745837789187,0.002,95112.0,95111.0,0.69973898]
[1745837789930,4.544e-05,95114.0,95111.0,0.64583898]
[1745837790189,4.544e-05,95114.0,95113.0,0.0461]
[1745837791143,0.10693558,95114.0,95113.0,0.04820254]
[1745837791348,0.10693558,95114.0,95113.0,0.0461]
[1745837792469,0.10893558,95114.0,95113.0,0.0501]
[1745837792913,0.10793558,95114.0,95113.0,0.0501]
[1745837793223,0.10893558,95114.0,95113.0,0.0521]
[1745837800653,0.11632359,95114.0,95113.0,0.0521]
[1745837802495,0.11632359,95114.0,95113.0,0.006]
[1745837806238,0.45632359,95114.0,95113.0,0.006]
[1745837806435,0.48587741,95114.0,95113.0,0.006]
[1745837807089,0.5502784,95112.0,95111.0,0.51462632]
[1745837807291,0.7064174,95112.0,95111.0,0.51462632]
[1745837807458,0.71380541,95112.0,95111.0,0.51462632]
[1745837807672,0.69879244,95112.0,95111.0,0.35420643]
[1745837807873,0.69879244,95112.0,95111.0,0.2801758]
[1745837807874,0.74739244,95112.0,95111.0,0.2801758]
[1745837808081,0.77693617,95112.0,95111.0,0.2366758]
[1745837808257,0.77693617,95112.0,95111.0,0.18409243]
[1745837808619,0.74739244,95112.0,95111.0,0.10516674]
[1745837808800,0.75139244,95112.0,95111.0,0.06875674]
[1745837809001,0.75139244,95112.0,95111.0,0.05113674]
[1745837809236,0.74939244,95112.0,95111.0,0.03641]
[1745837809552,0.75339244,95112.0,95111.0,0.01472674]
[1745837810119,0.7336974,95112.0,95111.0,1e-08]
[1745837813261,0.6850974,95112.0,95111.0,1e-08]
[1745837814582,0.46027815,95112.0,95111.0,1e-08]
[1745837814797,0.12027815,95112.0,95111.0,0.01000001]
[1745837815787,0.13991825,95112.0,95111.0,0.01000001]
[1745837815992,0.47991825,95112.0,95111.0,0.01000001]
[1745837822122,0.01051469,95105.0,95091.0,0.0499]
[1745837822313,0.01051447,95107.0,95091.0,0.0499]
[1745837822314,0.34,95100.0,95091.0,0.0499]
[1745837822525,0.34,95098.0,95091.0,0.0499]
[1745837822686,0.34,95096.0,95091.0,0.0499]
[1745837822888,0.34,95094.0,95091.0,0.0499]
[1745837823089,0.13391825,95093.0,95091.0,0.0499]
[1745837823537,0.02702811,95093.0,95092.0,0.09674184]
[1745837823716,0.00738801,95093.0,95092.0,0.19721152]
[1745837825085,0.02064339,95093.0,95092.0,0.19721152]
[1745837825299,0.01964339,95093.0,95092.0,0.19721152]
[1745837825521,0.01964339,95093.0,95092.0,0.19921152]
[1745837825522,0.02164339,95093.0,95092.0,0.19921152]
[1745837825694,0.002,95093.0,95092.0,0.19921152]
[1745837826461,0.002,95093.0,95092.0,0.11411283]
[1745837827221,0.002,95093.0,95092.0,0.11411233]
[1745837827896,0.001,95093.0,95092.0,0.11411233]
[1745837828220,0.001,95093.0,95092.0,0.10257233]
[1745837828597,0.002,95093.0,95092.0,0.10757233]
[1745837828805,0.001,95093.0,95092.0,0.10757233]
[1745837829000,0.002,95093.0,95092.0,0.10757233]
[1745837830446,0.002,95093.0,95092.0,0.11542528]
[1745837830985,0.002,95093.0,95092.0,0.13787581]
[1745837832321,0.002,95093.0,95092.0,0.13002286]
[1745837832532,0.002,95093.0,95092.0,0.51817233]
[1745837832645,0.002,95093.0,95092.0,0.51606968]
[1745837850194,0.002,95093.0,95092.0,0.10546968]
[1745837850365,0.002,95093.0,95092.0,0.10757242]
[1745837850564,0.002,95093.0,95092.0,0.12920966]
[1745837854141,0.002,95093.0,95092.0,0.10757242]
[1745837859238,0.00939189,95093.0,95092.0,0.10757242]
[1745837861924,0.00939189,95093.0,95092.0,0.06187242]
[1745837867636,0.00939189,95093.0,95087.0,0.30020567]
[1745837867922,0.00939189,95093.0,95088.0,0.00105255]
[1745837868264,0.00739189,95092.0,95088.0,0.00105255]
[1745837868666,0.001,95093.0,95088.0,0.00105255]
[1745837868909,0.0482,95106.0,95088.0,0.00105255]
[1745837869110,0.013,95093.0,95088.0,0.00205255]
[1745837870113,0.006,95093.0,95088.0,0.00205255]
[1745837870562,0.014,95093.0,95088.0,0.00205255]
[1745837871121,0.00738779,95092.0,95088.0,0.00205255]
[1745837871899,0.00738779,95092.0,95088.0,0.00105255]
[1745837872193,0.02438779,95092.0,95088.0,0.00105255]
[1745837872391,0.00738779,95091.0,95088.0,0.00105255]
[1745837872593,0.00738779,95091.0,95089.0,0.03957582]
[1745837872796,0.00738779,95091.0,95090.0,0.00105291]
[1745837873481,0.02738779,95091.0,95090.0,0.00105291]
[1745837875268,0.04838779,95091.0,95090.0,0.00105291]
[1745837875472,0.06838779,95091.0,95090.0,0.00105291]
[1745837875699,0.06838779,95091.0,95090.0,0.04458635]
[1745837876400,0.06838779,95091.0,95090.0,0.00105291]
[1745837876594,0.06838779,95091.0,95090.0,0.00105305]
[1745837878258,0.061,95091.0,95090.0,0.00105305]
[1745837879687,0.0683855,95091.0,95090.0,0.00105305]
[1745837880865,0.0683855,95091.0,95087.0,0.30020567]
[1745837881090,0.10689014,95090.0,95088.0,0.00105342]
[1745837881364,0.10689014,95090.0,95087.0,0.30020567]
[1745837882018,0.0073855,95089.0,95087.0,0.30020567]
[1745837882226,0.10689014,95088.0,95087.0,0.30020567]
[1745837882628,0.10689014,95088.0,95087.0,0.30120567]
[1745837882900,0.11427564,95088.0,95087.0,0.30020567]
[1745837883253,0.11427564,95088.0,95087.0,0.30220567]
[1745837883664,0.11427564,95088.0,95087.0,0.30120567]
[1745837884669,0.11427564,95088.0,95087.0,0.30020567]
[1745837884866,0.11527564,95088.0,95087.0,0.30020567]
[1745837885072,0.11627564,95088.0,95087.0,0.30020567]
[1745837885274,0.11627564,95088.0,95074.0,0.000849]
[1745837885500,0.11627564,95088.0,95075.0,0.00105368]
[1745837885734,0.0073855,95087.0,95075.0,0.00105368]
[1745837886485,0.0073855,95086.0,95075.0,0.00105368]
[1745837887153,0.0073855,95085.0,95075.0,0.00105368]
[1745837888286,0.0073855,95084.0,95075.0,0.00105368]
[1745837888508,0.0073855,95084.0,95075.0,0.00150935]
[1745837888908,0.0073855,95083.0,95075.0,0.00150935]
[1745837889253,0.0073855,95083.0,95076.0,0.01116878]
[1745837889454,0.0073855,95083.0,95077.0,0.00105369]
[1745837889823,0.0073855,95082.0,95077.0,0.00105369]
[1745837890560,0.0073855,95081.0,95077.0,0.0009608]
[1745837891433,0.0073855,95080.0,95077.0,0.00096055]
[1745837892055,0.0073855,95080.0,95077.0,0.01212001]
[1745837892234,0.0073855,95079.0,95077.0,0.01212001]
[1745837893505,0.0073855,95078.0,95077.0,0.01212001]
[1745837893726,0.0073855,95078.0,95077.0,0.00096055]
[1745837895020,0.0073855,95078.0,95076.0,0.0009606]
[1745837895222,0.0073855,95077.0,95076.0,0.0009606]
[1745837896414,0.0083855,95077.0,95076.0,0.0009606]
[1745837897107,0.0083855,95077.0,95076.0,0.30831862]
[1745837897421,0.0083855,95077.0,95076.0,0.35986682]
[1745837897615,0.0083855,95077.0,95076.0,0.15987913]
[1745837897759,0.001,95077.0,95076.0,0.15046868]
[1745837897961,0.002,95077.0,95076.0,0.15046868]
[1745837899993,0.002,95077.0,95076.0,0.45067435]
[1745837900196,0.002,95077.0,95076.0,0.44971447]
[1745837902656,0.002,95077.0,95076.0,0.55660461]
[1745837902853,0.002,95077.0,95076.0,0.76696263]
[1745837903735,0.01050087,95102.0,95087.0,0.01051668]
[1745837903933,0.01050087,95102.0,95088.0,0.04618246]
[1745837903934,0.00737803,95101.0,95088.0,0.04618246]
[1745837904467,0.00737803,95100.0,95088.0,0.04618246]
[1745837904936,0.0462,95117.0,95088.0,0.04618246]
[1745837904937,0.00737803,95099.0,95088.0,0.04618246]
[1745837905866,0.00737803,95098.0,95089.0,0.30020567]
[1745837906065,0.00737803,95098.0,95090.0,0.0009595]
[1745837906498,0.00737803,95097.0,95090.0,0.0009595]
[1745837907232,0.00737803,95096.0,95090.0,0.0009595]
[1745837908128,0.00737803,95096.0,95090.0,0.0019595]
[1745837908308,0.00737803,95095.0,95090.0,0.0019595]
[1745837908523,0.00737803,95095.0,95091.0,0.04408057]
[1745837908722,0.00737803,95095.0,95092.0,0.00095946]
[1745837909140,0.00737803,95094.0,95092.0,0.00095946]
[1745837909919,0.001,95096.0,95092.0,0.00095946]
[1745837909920,0.00737803,95093.0,95092.0,0.00095946]
[1745837910318,0.00737803,95093.0,95092.0,0.00395946]
[1745837910524,0.00737803,95093.0,95092.0,0.04823403]
[1745837911506,0.00837803,95093.0,95092.0,0.05123403]
[1745837911698,0.00837803,95093.0,95092.0,0.04823403]
[1745837911906,0.00937803,95093.0,95092.0,0.05123403]
[1745837912722,0.00937803,95093.0,95092.0,0.00695946]
[1745837913999,0.00937803,95093.0,95092.0,0.01305459]
[1745837914192,0.00937803,95093.0,95092.0,0.01305503]
[1745837914959,0.00837803,95093.0,95092.0,0.01005503]
[1745837915161,0.00737803,95093.0,95092.0,0.00705503]
[1745837915456,0.00737803,95093.0,95092.0,0.0377811]
[1745837915680,0.00837803,95093.0,95092.0,0.0387811]
[1745837916032,0.00837803,95093.0,95092.0,0.00805503]
[1745837916462,0.01037803,95093.0,95092.0,0.00905503]
[1745837917085,0.00837803,95093.0,95092.0,0.00805503]
[1745837917259,0.00837803,95093.0,95092.0,0.00905503]
[1745837917835,0.00837803,95093.0,95092.0,0.00809513]
[1745837927540,0.00837803,95093.0,95092.0,0.05469513]
[1745837928117,0.00837803,95093.0,95092.0,0.07973722]
[1745837929218,0.00837803,95093.0,95092.0,0.08952351]
[1745837929954,0.00837803,95093.0,95092.0,0.084054]
[1745837930998,0.00837803,95093.0,95092.0,0.037454]
[1745837931881,0.00837803,95093.0,95092.0,0.02766771]
[1745837935291,0.00837803,95093.0,95092.0,0.00809513]
[1745837937772,0.00837803,95093.0,95085.0,0.30020567]
[1745837937773,0.00837803,95093.0,95085.0,0.10361956]
[1745837937957,0.00837803,95093.0,95086.0,0.03032396]
[1745837938320,0.00737803,95092.0,95086.0,0.03032396]
[1745837939128,0.00737803,95091.0,95086.0,0.03132396]
[1745837939328,0.00737803,95091.0,95086.0,0.001]
[1745837939525,0.00737803,95091.0,95087.0,0.01955449]
[1745837939968,0.00737803,95091.0,95088.0,0.01955449]
[1745837940176,0.00737803,95090.0,95088.0,0.01955449]
[1745837940538,0.00737803,95090.0,95089.0,0.01955449]
[1745837940742,0.00737803,95090.0,95089.0,0.0414419]
[1745837942427,0.00837803,95090.0,95089.0,0.02188741]
[1745837943049,0.00737803,95090.0,95089.0,0.02188741]
[1745837943275,0.00937803,95090.0,95089.0,0.02388741]
[1745837943679,0.00937803,95090.0,95089.0,0.0434472]
[1745837945348,0.00937803,95090.0,95089.0,0.02388741]
[1745837946765,0.00937803,95090.0,95089.0,0.002]
[1745837961456,0.00937803,95090.0,95089.0,0.101]
[1745837971634,3.50937803,95090.0,95089.0,0.101]
[1745837973143,3.50937803,95090.0,95089.0,0.0518]
[1745837973490,3.50937803,95090.0,95089.0,0.002]
[1745837987054,3.50937803,95090.0,95089.0,0.02773196]
[1745837987454,3.50937803,95090.0,95089.0,0.2269221]
[1745837988002,3.50937803,95090.0,95089.0,0.33054166]
[1745837988211,3.50810985,95090.0,95089.0,0.32954166]
[1745837988377,3.50910985,95090.0,95089.0,0.33254166]
[1745837988979,3.50810985,95090.0,95089.0,0.54187093]
[1745837989179,3.501,95090.0,95089.0,0.54187093]
[1745837989381,3.502,95090.0,95089.0,0.55559226]
[1745837990207,3.502,95090.0,95089.0,0.57013311]
[1745837991995,3.502,95090.0,95089.0,0.56713311]
[1745837993503,3.502,95090.0,95089.0,0.67245311]
[1745837993928,3.502,95090.0,95089.0,0.66173178]
[1745838002173,3.502,95090.0,95089.0,0.33154166]
[1745838002368,3.502,95090.0,95089.0,0.10961956]
[1745838002578,3.502,95090.0,95089.0,0.2165097]
[1745838002713,3.502,95090.0,95089.0,0.32595055]
[1745838003303,3.502,95090.0,95089.0,0.71595055]
[1745838003521,3.502,95090.0,95089.0,0.93454069]
[1745838004116,0.000849,95129.0,95116.0,0.01454085]
[1745838004305,0.000849,95129.0,95126.0,1.0188376]
[1745838004454,0.000849,95129.0,95126.0,0.30689014]
[1745838004799,0.000849,95129.0,95126.0,0.41221014]
[1745838005201,0.000849,95129.0,95126.0,0.30689014]
[1745838005410,0.000849,95129.0,95126.0,0.30734581]
[1745838005624,0.000849,95129.0,95126.0,0.43517364]
[1745838005788,0.000849,95129.0,95126.0,0.82617364]
[1745838005955,0.000849,95129.0,95128.0,0.40554085]
[1745838006183,0.000849,95129.0,95128.0,0.51243099]
[1745838007232,0.022849,95129.0,95128.0,0.51343099]
[1745838007438,0.043849,95129.0,95128.0,0.51443099]
[1745838007844,0.000849,95129.0,95128.0,0.51243099]
[1745838008015,0.038849,95129.0,95128.0,1.24085099]
[1745838008844,0.038849,95129.0,95128.0,1.13553099]
[1745838009176,0.038849,95129.0,95128.0,1.24085099]
[1745838009515,0.038849,95129.0,95128.0,1.16098723]
[1745838010033,0.018849,95129.0,95128.0,1.15998723]
[1745838010210,0.01875644,95129.0,95128.0,1.15998723]
[1745838010417,0.03475644,95129.0,95128.0,1.16098723]
[1745838010838,0.01875644,95129.0,95128.0,1.12815099]
[1745838011038,0.00075644,95129.0,95128.0,0.62277014]
[1745838011252,0.00075644,95129.0,95128.0,0.62477014]
[1745838011253,0.02875644,95129.0,95128.0,0.62477014]
[1745838012327,0.02875644,95129.0,95128.0,0.63931099]
[1745838012554,0.00075644,95129.0,95128.0,0.63731099]
[1745838012714,0.03275644,95129.0,95128.0,0.63831099]
[1745838013170,0.00075644,95129.0,95128.0,0.63731099]
[1745838013413,0.01975644,95129.0,95128.0,0.63831099]
[1745838013664,0.01975644,95129.0,95128.0,1.02931099]
[1745838014036,0.03775644,95129.0,95128.0,1.07911099]
[1745838014412,0.000849,95150.0,95146.0,0.01051016]
[1745838014617,0.000849,95150.0,95147.0,0.4780353]
[1745838014816,0.000849,95150.0,95148.0,0.21019884]
[1745838015139,0.000849,95150.0,95148.0,0.31708898]
[1745838015721,0.000849,95150.0,95148.0,0.70277499]
[1745838015925,0.000849,95150.0,95148.0,1.09277499]
[1745838015926,0.023,95149.0,95148.0,1.09277499]
[1745838016317,0.002,95149.0,95148.0,1.09277499]
[1745838016513,0.023,95149.0,95148.0,1.12461123]
[1745838017033,0.033,95149.0,95148.0,1.12561123]
[1745838018841,0.033,95149.0,95148.0,1.04477499]
[1745838019312,0.002,95149.0,95148.0,1.04277499]
[1745838019441,0.002,95149.0,95148.0,1.14777499]
[1745838019642,0.013,95149.0,95148.0,1.14877499]
[1745838021766,0.013,95149.0,95148.0,1.04377499]
[1745838022065,0.013,95149.0,95148.0,1.14877499]
[1745838023105,0.013,95149.0,95148.0,0.70377499]
[1745838023300,0.013,95149.0,95148.0,0.5840353]
[1745838023947,0.011,95149.0,95148.0,0.5840353]
[1745838024367,0.011,95149.0,95148.0,0.5830353]
[1745838024368,0.002,95149.0,95148.0,0.5830353]
[1745838024771,0.007,95149.0,95148.0,0.5830353]
[1745838025423,0.007,95149.0,95148.0,0.4810353]
[1745838025619,0.007,95149.0,95148.0,0.5860353]
[1745838025770,0.007,95149.0,95148.0,0.5830353]
[1745838025974,0.002,95149.0,95148.0,0.21189014]
[1745838026200,0.015,95149.0,95148.0,0.21289014]
[1745838026399,0.027,95149.0,95148.0,0.21389014]
[1745838027189,0.027,95149.0,95148.0,0.31389014]
[1745838030616,0.027,95149.0,95148.0,0.52408898]
[1745838030811,0.027,95149.0,95148.0,0.31389014]
[1745838032510,0.027,95149.0,95148.0,0.31389014]
[1745838033129,0.027,95149.0,95148.0,0.20889014]
[1745838033841,0.03437064,95149.0,95148.0,0.20889014]
[1745838034052,0.03437064,95149.0,95148.0,0.31389014]
[1745838034314,0.05402606,95149.0,95148.0,0.20889014]
[1745838034524,0.05402606,95149.0,95148.0,0.102]
[1745838035355,0.04102606,95149.0,95148.0,0.101]
[1745838035569,0.04202606,95149.0,95148.0,0.11]
[1745838036255,0.02902606,95149.0,95148.0,0.1]
[1745838036438,0.03102606,95149.0,95148.0,0.116]
[1745838036652,0.03002606,95149.0,95148.0,0.109]
[1745838037081,0.03102606,95149.0,95148.0,0.116]
[1745838045510,0.02902606,95149.0,95148.0,0.1]
[1745838045906,0.03202606,95149.0,95148.0,0.11]
[1745838046121,0.03102606,95149.0,95148.0,0.103]
[1745838046555,0.03302606,95149.0,95148.0,0.11]
[1745838046718,0.03302606,95149.0,95148.0,0.42708898]
[1745838046898,0.01337064,95149.0,95148.0,0.42708898]
[1745838047101,0.006,95149.0,95148.0,0.42708898]
[1745838047339,0.004,95149.0,95148.0,0.42408898]
[1745838047661,0.005,95149.0,95148.0,0.43508898]
[1745838048723,0.005,95149.0,95148.0,0.32989014]
[1745838049140,0.005,95149.0,95148.0,0.223]
[1745838049740,0.01237144,95149.0,95148.0,0.223]
[1745838049939,0.03202878,95149.0,95148.0,0.223]
[1745838051963,0.03202878,95149.0,95148.0,0.118]
[1745838052882,0.04186276,95149.0,95148.0,0.118]
[1745838053524,0.04086276,95149.0,95148.0,0.107]
[1745838053753,0.03886276,95149.0,95148.0,0.11]
[1745838053960,0.03986276,95149.0,95148.0,0.11]
[1745838055051,0.49038034,95149.0,95148.0,0.118]
[1745838055274,0.49038034,95149.0,95126.0,0.00045567]
[1745838055275,0.01051159,95133.0,95126.0,0.00045567]
[1745838055507,0.34,95131.0,95126.0,0.00045567]
[1745838055733,0.34,95129.0,95126.0,0.00045567]
[1745838055969,0.00262818,95128.0,95126.0,0.00045567]
[1745838056181,0.02228552,95128.0,95126.0,0.00045567]
[1745838056656,0.02702878,95127.0,95126.0,0.00045567]
[1745838056839,0.02702878,95127.0,95126.0,0.00645567]
[1745838057074,0.02702878,95127.0,95126.0,0.00045567]
[1745838058202,0.02802878,95127.0,95126.0,0.00045567]
[1745838058423,0.02802878,95127.0,95126.0,0.00545567]
[1745838058641,0.02802878,95127.0,95126.0,0.00045567]
[1745838058852,0.02902878,95127.0,95126.0,0.00545567]
[1745838059942,0.02902878,95127.0,95126.0,0.10545567]
[1745838060183,0.54377589,95127.0,95126.0,0.10545567]
[1745838060383,0.69644643,95127.0,95126.0,0.10545567]
[1745838060696,0.48620118,95127.0,95126.0,0.10545567]
[1745838060884,0.34,95114.0,95095.0,0.0008486]
[1745838061021,0.26245119,95105.0,95095.0,0.0008486]
[1745838061236,0.40050012,95104.0,95095.0,0.0008486]
[1745838061594,0.02228619,95103.0,95095.0,0.0008486]
[1745838062094,0.00737144,95102.0,95095.0,0.0008486]
[1745838062292,0.00262886,95101.0,95095.0,0.0008486]
[1745838062646,0.02702878,95100.0,95095.0,0.0008486]
[1745838062848,0.00262887,95099.0,95095.0,0.0018486]
[1745838063068,0.02228621,95099.0,95095.0,0.0018486]
[1745838063270,0.02228621,95099.0,95095.0,0.0008486]
[1745838063467,0.02702878,95098.0,95095.0,0.0008486]
[1745838064026,0.02702878,95098.0,95095.0,0.1008486]
[1745838064310,0.01965734,95097.0,95095.0,0.1008486]
[1745838064612,0.02702878,95097.0,95095.0,0.1038486]
[1745838064771,0.01965734,95096.0,95095.0,0.10091563]
[1745838065168,0.01965734,95096.0,95095.0,0.10391563]
[1745838065540,0.01965734,95096.0,95095.0,0.10091563]
[1745838065944,0.01965734,95096.0,95095.0,0.10391563]
[1745838066173,0.01965734,95096.0,95095.0,0.10091563]
[1745838066591,0.02065734,95096.0,95095.0,0.10391563]
[1745838067106,0.02165734,95096.0,95095.0,0.10391563]
[1745838067314,0.002,95096.0,95095.0,0.10391563]
[1745838069170,0.002,95096.0,95095.0,0.10694274]
[1745838071282,0.02165734,95096.0,95095.0,0.10694274]
[1745838074869,0.02165734,95096.0,95095.0,0.00302711]
[1745838075073,0.02165734,95096.0,95095.0,9.326e-05]
[1745838075675,0.002,95096.0,95095.0,9.326e-05]
[1745838075999,0.002,95096.0,95094.0,0.0498]
[1745838076344,0.002,95096.0,95094.0,0.04993678]
[1745838076709,0.002,95096.0,95094.0,0.00013678]
[1745838076925,0.00262915,95095.0,95094.0,0.00013678]
[1745838077117,0.10951929,95095.0,95094.0,0.00013678]
[1745838077446,0.46906293,95095.0,95094.0,0.00013678]
[1745838077604,0.47375835,95095.0,95094.0,0.00013678]
[1745838077801,0.68407434,95095.0,95094.0,0.00013678]
[1745838078086,0.68667434,95095.0,95094.0,0.00013678]
[1745838078880,0.68767434,95095.0,95094.0,0.00013678]
[1745838079091,0.69845713,95095.0,95094.0,0.00013678]
[1745838079316,0.69745713,95095.0,95094.0,0.00013678]
[1745838079451,0.69845713,95095.0,95094.0,0.00013678]
[1745838079893,0.69945713,95095.0,95094.0,0.00013678]
[1745838080203,0.69945713,95095.0,95074.0,0.000849]
[1745838080204,0.35051734,95081.0,95074.0,0.000849]
[1745838080503,0.34,95079.0,95074.0,0.000849]
[1745838080655,0.34,95077.0,95074.0,0.000849]
[1745838080862,0.34,95075.0,95074.0,0.000849]
[1745838081084,0.44689014,95075.0,95074.0,0.000849]
[1745838081403,0.48354114,95075.0,95074.0,0.000849]
[1745838082188,0.48454114,95075.0,95074.0,0.000849]
[1745838082415,0.48554114,95075.0,95074.0,0.000849]
[1745838084707,0.47575835,95075.0,95074.0,0.000849]
[1745838084917,0.47565866,95075.0,95074.0,0.000849]
[1745838087358,0.48546481,95075.0,95074.0,0.000849]
[1745838089879,0.47565866,95075.0,95074.0,0.000849]
[1745838091089,0.5050577,95075.0,95074.0,0.000849]
[1745838092120,0.51557571,95075.0,95072.0,0.0008494]
[1745838092326,0.34,95073.0,95072.0,0.0008494]
[1745838092520,0.47628918,95073.0,95072.0,0.0008494]
[1745838092879,0.50315739,95073.0,95072.0,0.0008494]
[1745838094102,0.5139353,95073.0,95072.0,0.0008494]
[1745838094241,0.5149353,95073.0,95072.0,0.0008494]
[1745838095046,0.02786821,95073.0,95072.0,0.0466494]
[1745838095213,0.02886821,95073.0,95072.0,0.0466494]
[1745838095812,0.02786821,95073.0,95072.0,0.0466494]
[1745838096363,0.02786821,95073.0,95072.0,0.26479833]
[1745838096922,0.02686821,95073.0,95072.0,0.26479833]
[1745838097120,0.00732457,95073.0,95072.0,0.05443146]
[1745838097654,0.00832457,95073.0,95072.0,0.05943146]
[1745838097854,0.00932457,95073.0,95072.0,0.06043146]
[1745838098014,0.00732457,95073.0,95072.0,0.05443146]
[1745838098424,0.04332457,95073.0,95072.0,0.05543146]
[1745838109711,0.04332457,95073.0,95072.0,0.0476494]
[1745838109712,0.06296615,95073.0,95072.0,0.0476494]
[1745838109919,0.06296615,95073.0,95072.0,0.0018494]
[1745838111111,0.0628152,95073.0,95072.0,0.0018494]
[1745838112039,0.50970534,95073.0,95072.0,0.0018494]